{"text_format":"1","workbook":"xlsx","n_sheets":5,"sheets":["FINALES 1ERA COPA","FINALES 2DA COPA ","FINALES 3RA COPA  ","FINALES 4TA COPA","CAT. BOLA VERDE"],"not_rendered":{"charts":0,"images":3,"macros":0,"external_links":0,"defined_names":1,"comments":0,"pivot_tables":0},"unopened":[],"bounds":{"document_bytes":16777216,"sheet_cells":100000,"rows_first":2000,"rows_last":500,"rows_between":2000,"halvings":0,"cell_chars":16384,"cell_head_chars":4096},"cells_cut":0,"cells_raw":0,"read":"whole","date_system":"1900"}

{"sheet":"FINALES 1ERA COPA","index":0,"n_rows":30,"n_cols":5,"rows_kept":30,"cut":false,"hidden":true,"merged":[[27,3,28,3],[27,4,28,4],[22,0,30,0],[22,1,23,1],[22,2,23,2],[22,3,23,3],[22,4,23,4],[24,1,26,1],[24,2,25,2],[24,3,25,3],[29,1,30,1],[29,2,30,2],[29,3,30,3],[29,4,30,4],[24,4,25,4],[26,2,26,4],[16,1,17,1],[27,1,28,1],[27,2,28,2],[12,0,17,0],[12,1,13,1],[12,2,13,2],[16,2,17,2],[18,0,21,0],[18,1,19,1],[18,2,19,2],[18,3,19,3],[18,4,19,4],[20,1,21,1],[20,2,21,2],[20,3,21,3],[20,4,21,4],[10,3,11,3],[10,4,11,4],[12,3,13,3],[12,4,13,4],[14,1,15,1],[14,2,15,2],[14,3,15,3],[14,4,15,4],[16,3,17,3],[16,4,17,4],[6,0,7,0],[6,1,7,1],[1,2,1,4],[2,2,2,4],[3,2,3,4],[4,2,4,4],[5,2,5,4],[8,0,11,0],[8,1,9,1],[8,2,9,2],[8,3,9,3],[8,4,9,4],[10,1,11,1],[10,2,11,2]]}
["  ","  "]
[null,null,"1ER TORNEO TENISTICO"]
[null,null,"RUITOQUE GOLF 2015"]
[null,null,"PREMIACION "]
[null,null,"Domingo 12 de Abril de 2014"]
["HORA","CATEGORA","SEMIFINALES - F I N A L E S "]
["7:00 A.M","INTERMEDIA ","JULIAN TOLOZA","VS","JAIR JAIMES "]
[null,null,"CHRISTIAN RUEDA","VS","OSCAR APARICIO"]
["8:00 A.M.","4TA CB ","MARCOS GOMEZ","VS","SERGIO DIAZ CASELLE"]
[]
[null,"3RA CB","ANDRES ALMEYDA","VS","JUAN C. MORENO"]
[]
["9:00 A.M","4TA","ANDRES CORTES (RT)","VS","JOSE GABRIEL MARIÑO (CU)"]
[]
[null,"3RA","DAVIS VEGA (CC)","VS","DUVAN JAIMES (RT)"]
[]
[null,"2DA","JEFFERSON AGUILAR (CC)","VS","JULIAN TOLOZA (LT)"]
[]
["10:00 A.M","DAMAS","LUCY NUÑEZ (LT)","VS","CHING YI LIN (CU)"]
[]
[null,"NOVATOS","GERMAN BLANCO (LT)","VS","EDGAR M. SUAREZ (T&SA)"]
[]
["11:00 A.M.","INTERMEDIA ","CHRISTIAN RUEDA (LT)","VS","JAIR JAIMES (USTA)"]
[]
[null,"8 AÑOS","MARIA V. VELASQUEZ (RT)","VS","PETER LUBINUS (RT)"]
[]
[null,null,"3ER PUESTO - MARIANA URREGO COY (MT)"]
[null,"10 AÑOS","JUAN CARLOS VELASQUEZ (RT)","VS","FELIPE RIAÑO (RT)"]
[]
[null,"12 AÑOS","LUIS H. NOVA (MT)","VS","SANTIAGO ABADIA (MT)"]

{"sheet":"FINALES 2DA COPA ","index":1,"n_rows":24,"n_cols":5,"rows_kept":24,"cut":false,"hidden":true,"merged":[[23,0,24,0],[23,1,24,1],[23,2,24,2],[23,3,24,3],[23,4,24,4],[13,0,18,0],[13,1,14,1],[13,2,14,2],[13,3,14,3],[13,4,14,4],[15,1,16,1],[15,2,16,2],[15,3,16,3],[15,4,16,4],[17,1,18,1],[17,2,18,2],[17,3,18,3],[17,4,18,4],[19,0,22,0],[19,1,20,1],[19,2,20,2],[19,3,20,3],[19,4,20,4],[21,1,22,1],[21,2,22,2],[21,3,22,3],[21,4,22,4],[8,0,12,0],[9,1,10,1],[9,2,10,2],[9,3,10,3],[9,4,10,4],[11,1,12,1],[11,2,12,2],[11,3,12,3],[11,4,12,4],[6,0,7,0],[6,1,7,1],[1,2,1,4],[2,2,2,4],[3,2,3,4],[4,2,4,4],[5,2,5,4]]}
["  ","  "]
[null,null,"1ER TORNEO TENISTICO"]
[null,null,"RUITOQUE GOLF 2015"]
[null,null,"PREMIACION "]
[null,null,"Domingo 12 de Abril de 2014"]
["HORA","CATEGORA","SEMIFINALES"]
["7:00 A.M","SEMIFINAL INTERMEDIA ","OSCAR APARICIO (IND)","VS","JAIR JAIMES (USTA)"]
[null,null,"GERMAN TORRES (RT)","VS","JORGE GARCIA (RT)"]
["8:00 A.M.","CATEGORIA","SUBCAMPEON","VS","CAMPEON"]
[null,"4TA CB ","CARLOS AMADO ","VS","JUAN CARLOS COOK (T&SA)"]
[]
[null,"3RA CB","LUIS ALMANZA (RT)","VS","GONZALO ALVAREZ (IND)"]
[]
["9:00 A.M","4TA","GERMAN BLANCO (LT)","VS","GUSTAVO MENDEZ (IND)"]
[]
[null,"3RA","JOHAN S REYES (LT)","VS","HERMES LOPEZ (LT)"]
[]
[null,"2DA","DIEGO BALCARCEL (IND)","VS","JAIME MARTINEZ (LAS LLAVES)"]
[]
["10:00 A.M","DAMAS","ANDREA MONSALVE (UPB)","VS","ELSA M COY (UPB)"]
[]
[null,"NOVATOS","ANDRES A ORTIZ (T&SA)","VS","JUAN CARLOS GUZMAN (COL)"]
[]
["11:00 A.M.","INTERMEDIA ","JAIR JAIMES (USTA)","VS","JORGE GARCIA (RT)"]

{"sheet":"FINALES 3RA COPA  ","index":2,"n_rows":28,"n_cols":4,"rows_kept":28,"cut":false,"hidden":true,"merged":[[18,1,19,1],[20,1,21,1],[22,1,23,1],[24,1,25,1],[26,1,27,1],[16,1,17,1],[6,1,7,1],[1,1,1,3],[2,1,2,3],[3,1,3,3],[4,1,4,3],[8,1,9,1],[10,1,11,1],[12,1,13,1],[14,1,15,1]]}
[null,"  ","  "]
[null,"3RA COPA RANKING"]
[null,"RUITOQUE GOLF 2015"]
[null,"FINALES  Y PREMIACION "]
[null,"Domingo 04 de Octubre de 2015"]
[null,"CATEGORIA","CATEGORIA","PARTICIPANTE"]
[null,"NIVEL I HASTA 8 AÑOS","CAMPEONA","MANUELA ABADIA (RT)"]
[null,null,"SUBCAMPEONA","LUCIANA VALENCIA (RT)"]
[null,"NIVEL II HASTA 10 AÑOS","CAMPEON","FELIPE RIAÑO FLOREZ (RT)"]
[null,null,"SUBCAMPEONA","SIMON BARRIGA (RT)"]
[null,"NIVEL III HASTA 12 AÑOS","CAMPEON","CESAR MAHECHA (ICP)"]
[null,null,"SUBCAMPEON","JUAN JOSE MURILLO (RT)"]
[null,"4TA CB ","CAMPEON","SANTIAGO ABADIA (RT)"]
[null,null,"SUBCAMPEON","DIEGO MUÑOZ (RT)"]
[null,"3RA CB","CAMPEON","GERMAN BLANCO (IND)"]
[null,null,"SUBCAMPEON","HERMES LOPEZ (LT)"]
[null,"DAMAS","CAMPEON","ELSA M. COY (MT)"]
[null,null,"SUBCAMPEON","MARIA N PLATA (IND)"]
[null,"5TA","CAMPEON","MIGUEL A PINTO (IND)"]
[null,null,"SUBCAMPEON","JUAN CARLOS GUZMAN (COL)"]
[null,"4TA","CAMPEON","GUSTAVO  MENDEZ (IND)"]
[null,null,"SUBCAMPEON","DAVID S URIBE (LV)"]
[null,"3RA","CAMPEON","HEBERT GONZALEZ (BAV)"]
[null,null,"SUBCAMPEON","JOHAN C JAIMES (IND)"]
[null,"2DA","CAMPEON","RODOLFO HERRERA (RT)"]
[null,null,"SUBCAMPEON","ANDRES ZAPATA (MT)"]
[null,"INTERMEDIA ","CAMPEON","JORGE GARCIA (RT)"]
[null,null,"SUBCAMPEON","JAIR JAIMES (IND)"]

{"sheet":"FINALES 4TA COPA","index":3,"n_rows":15,"n_cols":5,"rows_kept":15,"cut":false,"hidden":true,"merged":[[11,2,11,4],[1,2,1,4],[2,2,2,4],[3,2,3,4],[4,2,4,4],[5,2,5,4]]}
[]
[null,null,"4TA COPA RANKING ANIVERSARIO"]
[null,null,"RUITOQUE GOLF COUNTRY CLUB 2015"]
[]
[null,null,"PROGRAMACION"]
[null,null,"Domingo 22 de Noviembre de 2015"]
[]
[null,"CATEGORIA","CAMPEON ","VS","SUBCAMPEON"]
[null,"2DA","ALFRED S GONZALEZ (IND)","VS","DIEGO BALCARCEL (IND)"]
[null,"3RA","JOHAN S REYES (LT)","VS","HERMES LOPEZ (LT)"]
[null,"4TA","DAVID S URIBE (LV)","VS","CARLOS J PINTO (CU)"]
[null,"DAMAS","GAN: CHING YI LIN VS MARIA N PLATA "]
[null,"NOVATOS","SALOMON PINTO (RT)","VS","JESUS REY (RT)"]
[null,"3RA CB","LUIS ALMANZA (RT)","VS","ALIRIO DIAZ (MS)"]
[null,"4TA CB","MARIO VILLALBA (RT)","VS","MARCOS GOMEZ (RT)"]

{"sheet":"CAT. BOLA VERDE","index":4,"n_rows":41,"n_cols":10,"rows_kept":41,"cut":false,"hidden":false,"merged":[[1,0,2,9],[3,1,3,9],[4,0,4,9]]}
[]
[" COPA RANKING EGO SPORTS - LISANTENIS 2019"]
[]
[null,"C A T E G O R I A :  BOLA VERDE"]
["\"Champions Kids\""]
[null,null,null,"23-24 FEBRERO","27-28 ABRIL","20-21 JULIO","24-25 AGOSTO","26-27 OCTUBRE","23-24 NOVIEMBRE"]
["NO.","NOMBRE","CLUB","1RA      COPA","2DA      COPA","FESTIVAL INFANTIL","3RA       COPA","4TA         COPA LIGA","COPA EGO SPORTS","TOTAL"]
[1,"ANGEL DAVID HERRERA URIBE ","LIGA DE TENIS ",10,50,35,35,null,null,{"$f":"SUM(D8:H8)","v":130}]
[2,"ALEXANDER FOSTER CAMARGO ","CAMPESTRE",50,0,0,18,null,null,68]
[3,"MARIAM SOFIA GARCIA CASTELLANOS","VERSALLES ",6,35,25,0,null,null,66]
[4,"EMMANUEL JOSEPH CARRILLO VILLALBA","LISANTENIS",0,0,0,50,null,null,50]
[5,"TOMAS REMOLINA","FULL TENIS",0,0,50,0,null,null,50]
[6,"PABLO MONTOYA GALVIS","CAMPESTRE",25,25,0,0,null,null,50]
[7,"PETER LUBINUS QUINTERO ","RUITOQUE",18,25,0,0,null,null,43]
[8,"DANIEL BARRETO","FULL TENIS",0,18,3,18,null,null,39]
[9,"CRISTIAN GUTIERREZ ","VERSALLES ",0,0,18,18,null,null,36]
[10,"DANIEL CALA","ACE TEAM",0,0,10,25,null,null,35]
[11,"MARTHA ROJAS CARDESA","RUITOQUE",0,10,0,25,null,null,35]
[12,"JUAN ALEJANDRO JIMENEZ LOZADA ","MIRAMAR ",35,0,0,0,null,null,35]
[13,"NICOLAS CARDONA QUINTERO","FULL TENIS",3,0,25,0,null,null,28]
[14,"ANGIE VALENTINA FURNIELES GARCIA ","INFANTAS",25,0,0,0,null,null,25]
[15,"VALENTINA NOVOA MARTINEZ","CAMPESTRE",6,18,0,0,null,null,24]
[16,"MARIANA PARRA HERRERA ","INDEPENDIENTE",3,0,0,18,null,null,21]
[17,"CAMILO PALACIOS","SAUCARA",0,0,0,18,null,null,18]
[18,"JERONIMO OCHOA","SAUCARA",0,18,0,0,null,null,18]
[19,"VALENTINA RODRIGUEZ","CAMPESTRE",0,18,0,0,null,null,18]
[20,"CAMILO ANDRES ORTIZ","SAUCARA",0,18,0,0,null,null,18]
[21,"SIMON REY PARRA","CAMPESTRE",18,0,0,0,null,null,{"$f":"SUM(D28:H28)","v":18}]
[22,"ESTEBAN ACEVEDO BETTER","SAUCARA",18,0,0,0,null,null,{"$f":"SUM(D29:H29)","v":18}]
[23,"LUCIANA PEDRAZA ","FULL TENIS",0,0,0,10,null,null,{"$f":"SUM(D30:H30)","v":10}]
[24,"PEDRO PABLO LOZA","FULL TENIS",0,0,0,6,null,null,{"$f":"SUM(D31:H31)","v":6}]
[25,"JUAN DIEGO CASTRO","SAUCARA",0,0,0,6,null,null,{"$f":"SUM(D32:H32)","v":6}]
[26,"SANTIAGO GARCIA","VERSALLES ",0,6,0,0,null,null,6]
[27,"GABRIEL ALBARRACIN","SAUCARA",0,6,0,0,null,null,6]
[28,"SIMON RANGEL","FULL TENIS",0,0,6,0,null,null,{"$f":"SUM(D35:H35)","v":6}]
[29,"SANTIAGO QUINTERO","COMFENALCO",0,0,6,0,null,null,{"$f":"SUM(D36:H36)","v":6}]
[30,"ANDREA CAVIEDES","REAL DE MINAS",0,0,0,3,null,null,{"$f":"SUM(D37:H37)","v":3}]
[31,"LIZETH BERMUDEZ","COMFENALCO",0,0,3,0,null,null,{"$f":"SUM(D38:H38)","v":3}]
[32,"JUAN MARTIN SALCEDO","VERSALLES ",0,3,0,0,null,null,3]
[33,"MARIA JOSE BETRO","CAMPESTRE",0,3,0,0,null,null,3]
[34,"MATEO BARBOSA REY ","SAUCARA",3,0,0,0,null,null,{"$f":"SUM(D41:H41)","v":3}]